fUSD/lending_fUSD_20241024
["ID","MTS","AMOUNT","RATE_DAILY","PERIOD"]
[340747976,1729775435508,-893.43,0.00065999,120]
[340747977,1729775435519,-893.43,0.00065999,120]
[340747978,1729775435528,-500.0,0.00065999,120]
[340747979,1729775435537,-500.0,0.00065999,120]
[340747980,1729775435547,-1749.11,0.00065999,120]
[340747981,1729775435556,-1749.11,0.00065999,120]
[340747982,1729775435565,-500.0,0.00065999,120]
[340747983,1729775435574,-500.0,0.00065999,120]
[340747984,1729775435584,-500.0,0.00065999,120]
[340747985,1729775435593,-488.64885157,0.00065999,120]
[340747986,1729775435602,-1247.18,0.00065999,120]
[340747987,1729775435612,-1247.18,0.00065999,120]
[340747988,1729775435621,-500.0,0.00065999,120]
[340747989,1729775435630,-500.0,0.00065999,120]
[340747990,1729775435640,-500.0,0.00065999,120]
[340747991,1729775435650,-500.0,0.00065999,120]
[340747992,1729775435659,-1886.98,0.00065999,120]
[340747993,1729775435668,-1754.91973075,0.00065999,120]
[340747994,1729775435740,-132.06026925,0.00065999,120]
[340747995,1729775435751,-874.57,0.00065999,120]
[340747996,1729775435760,-874.57,0.00065999,120]
[340747997,1729775435769,-816.19,0.00065999,120]
[340747998,1729775435778,-816.19,0.00065999,120]
[340747999,1729775435788,-500.0,0.00065999,120]
[340748000,1729775435797,-500.0,0.00065999,120]
[340748001,1729775435807,-500.0,0.00065999,120]
[340748002,1729775435816,-500.0,0.00065999,120]
[340748003,1729775435826,-500.0,0.00065999,120]
[340748004,1729775435835,-500.0,0.00065999,120]
[340748005,1729775435845,-838.71,0.00065999,120]
[340748006,1729775435855,-838.71,0.00065999,120]
[340748007,1729775435864,-2111.79,0.00065999,120]
[340748008,1729775435875,-2111.79,0.00065999,120]
[340748009,1729775435886,-500.0,0.00065999,120]
[340748010,1729775435895,-500.0,0.00065999,120]
[340748011,1729775435905,-500.0,0.00065999,120]
[340748012,1729775436017,-500.0,0.00065999,120]
[340748013,1729775436028,-500.0,0.00065999,120]
[340748014,1729775436037,-500.0,0.00065999,120]
[340748015,1729775436046,-500.0,0.00065999,120]
[340748016,1729775436056,-500.0,0.00065999,120]
[340748017,1729775436065,-852.59,0.00065999,120]
[340748018,1729775436074,-852.59,0.00065999,120]
[340748019,1729775436083,-48267.98297196,0.00066,120]
[340748020,1729775436096,-500.56005864,0.00066,120]
[340748021,1729775436107,-1326.64895,0.00066,120]
[340748022,1729775436118,-552.698,0.00066,120]
[340748023,1729775436140,-95702.36182963,0.00066,120]
[340748026,1729775437531,-169.25,0.00065791,120]
[340748027,1729775437541,-142.74999959,0.00066,120]
[340748028,1729775437552,-693.51935749,0.00066,120]
[340748029,1729775437564,-131872.77919457,0.00066,120]
[340748030,1729775437645,-220940.69963812,0.00066,120]
[340748031,1729775437654,-1002.391938,0.00066,120]
[340748032,1729775437664,-1002.391938,0.00066,120]
[340748033,1729775437673,-2000.0,0.00066155,30]
[340748034,1729775437682,-200.0,0.00066155,30]
[340748035,1729775437691,-2000.0,0.00066155,30]
[340748036,1729775437700,-200.0,0.00066155,30]
[340748037,1729775437709,-200.0,0.00066155,30]
[340748038,1729775437718,-289.79992836,0.00066257,28]
[340748039,1729775437727,-300.0,0.000663,2]
[340748040,1729775437736,-723.0,0.000664,30]
[340748041,1729775437746,-150.0,0.00066419,120]
[340748042,1729775437756,-500.0,0.00066489,120]
[340748043,1729775437765,-500.0,0.00066489,120]
[340748044,1729775437780,-1558.31,0.00066489,120]
[340748045,1729775437789,-500.0,0.00066489,120]
[340748046,1729775437799,-500.0,0.00066489,120]
[340748047,1729775437808,-500.0,0.00066489,120]
[340748048,1729775437817,-500.0,0.00066489,120]
[340748049,1729775437828,-500.0,0.00066489,120]
[340748050,1729775437837,-1238.07,0.00066489,120]
[340748051,1729775437847,-636.44898033,0.00066489,120]
[340748052,1729775437856,-515.78586005,0.00066489,120]
[340748053,1729775437865,-1666.69,0.00066489,120]
[340748054,1729775437879,-500.0,0.00066489,120]
[340748055,1729775437889,-674.35,0.00066489,120]
[340748056,1729775437897,-1749.11,0.00066489,120]
[340748057,1729775437908,-500.0,0.00066489,120]
[340748058,1729775437919,-365.42481429,0.00066489,120]
[340748059,1729775437928,-500.0,0.00066489,120]
[340748060,1729775437938,-500.0,0.00066489,120]
[340748061,1729775437947,-500.0,0.00066489,120]
[340748062,1729775437957,-1247.18,0.00066489,120]
[340748063,1729775437967,-500.0,0.00066489,120]
[340748064,1729775437977,-500.0,0.00066489,120]
[340748066,1729775437986,-500.0,0.00066489,120]
[340748068,1729775437995,-500.0,0.00066489,120]
[340748070,1729775438004,-500.0,0.00066489,120]
[340748072,1729775438013,-500.0,0.00066489,120]
[340748074,1729775438024,-500.0,0.00066489,120]
[340748076,1729775438033,-500.0,0.00066489,120]
[340748078,1729775438043,-500.0,0.00066489,120]
[340748080,1729775438053,-500.0,0.00066489,120]
[340748082,1729775438063,-500.0,0.00066489,120]
[340748084,1729775438072,-500.0,0.00066489,120]
[340748086,1729775438082,-500.0,0.00066489,120]
[340748088,1729775438092,-500.0,0.00066489,120]
[340748090,1729775438102,-208.08388018,0.00066489,120]
[340748092,1729775438111,-500.0,0.00066489,120]
[340748094,1729775438121,-576.04444621,0.00066489,120]
[340748096,1729775438130,-500.0,0.00066489,120]
[340748098,1729775438140,-590.02,0.00066489,120]
[340748100,1729775438149,-500.0,0.00066489,120]
[340748102,1729775438158,-500.0,0.00066489,120]
[340748104,1729775438168,-816.19,0.00066489,120]
[340748106,1729775438177,-500.0,0.00066489,120]
[340748108,1729775438188,-500.0,0.00066489,120]
[340748110,1729775438198,-500.0,0.00066489,120]
[340748112,1729775438208,-500.0,0.00066489,120]
[340748114,1729775438217,-500.0,0.00066489,120]
[340748116,1729775438227,-500.0,0.00066489,120]
[340748118,1729775438236,-500.0,0.00066489,120]
[340748120,1729775438245,-500.0,0.00066489,120]
[340748122,1729775438255,-500.0,0.00066489,120]
[340748124,1729775438265,-500.0,0.00066499,120]
[340748126,1729775438276,-606.56271091,0.00066499,120]
[340748128,1729775438285,-543.44586655,0.00066499,120]
[340748137,1729775438364,-1014.86413345,0.00066499,120]
[340748139,1729775438373,-182.44015078,0.00066499,120]
[340748140,1729775438382,-500.0,0.00066499,120]
[340748142,1729775438392,-500.0,0.00066499,120]
[340748144,1729775438401,-500.0,0.00066499,120]
[340748146,1729775438411,-500.0,0.00066499,120]
[340748147,1729775438421,-500.0,0.00066499,120]
[340748148,1729775438430,-1238.07,0.00066499,120]
[340748149,1729775438440,-1666.69,0.00066499,120]
[340748150,1729775438449,-893.43,0.00066499,120]
[340748151,1729775438460,-500.0,0.00066499,120]
[340748152,1729775438469,-497.7394657,0.00066499,120]
[340748153,1729775438478,-674.35,0.00066499,120]
[340748154,1729775438488,-1749.11,0.00066499,120]
[340748155,1729775438497,-500.0,0.00066499,120]
[340748156,1729775438507,-500.0,0.00066499,120]
[340748157,1729775438516,-500.0,0.00066499,120]
[340748158,1729775438528,-1247.18,0.00066499,120]
[340748159,1729775438538,-500.0,0.00066499,120]
[340748160,1729775438547,-500.0,0.00066499,120]
[340748161,1729775438556,-500.0,0.00066499,120]
[340748162,1729775438566,-500.0,0.00066499,120]
[340748163,1729775438576,-590.02,0.00066499,120]
[340748164,1729775438585,-500.0,0.00066499,120]
[340748165,1729775438594,-874.57,0.00066499,120]
[340748166,1729775438603,-816.19,0.00066499,120]
[340748167,1729775438612,-500.0,0.00066499,120]
[340748168,1729775438622,-500.0,0.00066499,120]
[340748169,1729775438632,-838.71,0.00066499,120]
[340748170,1729775438642,-2111.79,0.00066499,120]
[340748171,1729775438651,-500.0,0.00066499,120]
[340748172,1729775438661,-500.0,0.00066499,120]
[340748173,1729775438671,-500.0,0.00066499,120]
[340748174,1729775438680,-852.59,0.00066499,120]
[340748175,1729775438690,-3896.45631899,0.000665,2]
[340748176,1729775438700,-180.64071857,0.000665,2]
[340748177,1729775438709,-500.0,0.00066589,120]
[340748178,1729775438718,-1558.31,0.00066589,120]
[340748179,1729775438727,-500.0,0.00066589,120]
[340748180,1729775438737,-500.0,0.00066589,120]
[340748181,1729775438747,-500.0,0.00066589,120]
[340748182,1729775438756,-500.0,0.00066589,120]
[340748183,1729775438766,-1666.69,0.00066589,120]
[340748184,1729775438776,-674.35,0.00066589,120]
[340748185,1729775438785,-1749.11,0.00066589,120]
[340748186,1729775438794,-500.0,0.00066589,120]
[340748187,1729775438803,-500.0,0.00066589,120]
[340748188,1729775438813,-500.0,0.00066589,120]
[340748189,1729775438822,-1247.18,0.00066589,120]
[340748190,1729775438831,-413.21730594,0.00066589,120]
[340748191,1729775438841,-500.0,0.00066589,120]
[340748192,1729775438851,-36.12814676,0.00066589,120]
[340748193,1729775438865,-463.87185324,0.00066589,120]
[340748194,1729775438878,-500.0,0.00066589,120]
[340748195,1729775438887,-590.02,0.00066589,120]
[340748196,1729775438897,-500.0,0.00066589,120]
[340748197,1729775438906,-816.19,0.00066589,120]
[340748198,1729775438915,-543.33959197,0.00066589,120]
[340748199,1729775438925,-500.0,0.00066589,120]
[340748200,1729775438935,-500.0,0.00066599,120]
[340748201,1729775438944,-1238.07,0.00066599,120]
[340748202,1729775438953,-1886.98,0.00066599,120]
[340748203,1729775438962,-500.0,0.00066599,120]
[340748204,1729775438972,-316.99030579,0.00066599,120]
[340748205,1729775438985,-152.0783748,0.00066599,120]
[340748206,1729775438995,-500.0,0.00066599,120]
[340748207,1729775439005,-36963.9550532,0.000666,120]
[340748208,1729775439415,-107050.74758803,0.000666,120]
[340748209,1729775439424,-297.7757624,0.000666,120]
[340748210,1729775439433,-6561.3683275,0.00066612,4]
[340748211,1729775439443,-150.0,0.00066658,120]
[340748212,1729775439452,-150.0,0.00066658,120]
[340748213,1729775439461,-300.0,0.000667,2]
[340748214,1729775439470,-2000.0,0.00066817,30]
[340748215,1729775439479,-200.0,0.00066817,30]
[340748216,1729775439489,-2000.0,0.00066817,30]
[340748217,1729775439498,-200.0,0.00066817,30]
[340748218,1729775439507,-200.0,0.00066817,30]
[340748220,1729775439517,-372.57,0.00066842,2]
[340748222,1729775439527,-208.04297118,0.00066863,120]
[340748223,1729775439536,-500.0,0.00066899,120]
[340748225,1729775439546,-1558.31,0.00066899,120]
[340748227,1729775439555,-500.0,0.00066899,120]
[340748229,1729775439565,-500.0,0.00066899,120]
[340748231,1729775439574,-500.0,0.00066899,120]
[340748233,1729775439584,-500.0,0.00066899,120]
[340748235,1729775439593,-1666.69,0.00066899,120]
[340748237,1729775439603,-674.35,0.00066899,120]
[340748239,1729775439612,-500.0,0.00066899,120]
[340748241,1729775439622,-181.17332031,0.00066899,120]
[340748243,1729775439631,-500.0,0.00066899,120]
[340748245,1729775439640,-500.0,0.00066899,120]
[340748247,1729775439650,-524.75,0.00066899,120]
[340748249,1729775439659,-590.02,0.00066899,120]
[340748251,1729775439669,-500.0,0.00066899,120]
[340748253,1729775439680,-602.63016692,0.000669,2]
[340748255,1729775439689,-1045.27635998,0.00066954,4]
[340748257,1729775439701,-4361.22059742,0.00066954,4]
[340748259,1729775439711,-500.0,0.00066973,15]
[340748261,1729775439720,-500.0,0.00066973,5]
[340748263,1729775439730,-289.79992836,0.00066986,28]
[340748265,1729775439739,-4552.22061175,0.00066986,31]
[340748267,1729775439748,-757.04,0.00066986,60]
[340748268,1729775439758,-423.08,0.00066986,60]
[340748269,1729775439767,-757.04,0.00066986,60]
[340748271,1729775439776,-757.04,0.00066986,60]
[340748273,1729775439786,-1513.87,0.00066986,60]
[340748275,1729775439795,-757.04,0.00066986,60]
[340748277,1729775439805,-757.04,0.00066986,60]
[340748279,1729775439814,-757.04,0.00066986,60]
[340748280,1729775439823,-757.04,0.00066986,60]
[340748282,1729775439833,-757.04,0.00066986,60]
[340748284,1729775439842,-757.04,0.00066986,60]
[340748286,1729775439851,-951.37,0.00066986,60]
[340748288,1729775439861,-1749.11,0.00066989,120]
[340748289,1729775439870,-1247.18,0.00066989,120]
[340748290,1729775439883,-500.0,0.00066989,120]
[340748291,1729775439892,-816.19,0.00066989,120]
[340748292,1729775439902,-500.0,0.00066989,120]
[340748293,1729775439911,-107931.13259181,0.00066997,120]
[340748294,1729775439924,-11794.39456971,0.00066997,120]
[340748295,1729775439935,-30445.52016731,0.00066997,120]
[340748296,1729775439946,-874.75,0.00066997,120]
[340748297,1729775439966,-1689.069,0.00066997,120]
[340748298,1729775439977,-2625.00000002,0.00066997,120]
[340748299,1729775439988,-816.98597974,0.00066997,120]
[340748300,1729775439999,-3535.03979346,0.00066997,120]
[340748301,1729775440010,-1406.98951982,0.00066997,120]
[340748302,1729775440021,-1068.567265,0.00066997,120]
[340748307,1729775442527,-500.0,0.00064999,120]
[340748309,1729775442537,-755.06367634,0.00065273,120]
[340748310,1729775442549,-244.93632366,0.00065273,120]
[340748311,1729775442559,-1500.0,0.00065547,120]
[340748312,1729775442569,-2000.0,0.00065821,120]
[340748313,1729775442581,-2500.0,0.00066095,120]
[340748314,1729775442591,-2803.18833669,0.00066369,120]
[340748315,1729775442604,-196.81166331,0.00066369,120]
[340748316,1729775442615,-475.5653201,0.00066389,2]
[340748317,1729775442627,-41.5057149,0.00066389,2]
[340748318,1729775442638,-394.61073616,0.00066643,120]
[340748319,1729775442654,-161.73449782,0.00066643,120]
[340748320,1729775442664,-1043.7743889,0.00066997,120]
[340748321,1729775442677,-3495.74894917,0.00066997,120]
[340748322,1729775442784,-3170.430971,0.00066997,120]
[340748323,1729775442796,-1380.47558789,0.00066997,120]
[340748324,1729775442807,-67969.47933836,0.00066997,120]
[340748325,1729775442818,-510.81800001,0.00066997,120]
[340748326,1729775442830,-507.9676295,0.00066997,120]
[340748327,1729775442845,-21783.38013085,0.00066997,120]
[340748333,1729775445548,-259.238236,0.00065205,120]
[340748334,1729775445561,-240.761764,0.00065205,120]
[340748335,1729775445571,-500.0,0.00065205,120]
[340748336,1729775445581,-500.0,0.00065489,120]
[340748337,1729775445591,-497.46096227,0.00065499,120]
[340748338,1729775445601,-12187.05607373,0.00066997,120]
[340748339,1729775445614,-1193.54387146,0.00066997,120]
[340748340,1729775445626,-2184.32576576,0.00066997,120]
[340748392,1729775514399,223.0,0.000234,2]
[340748393,1729775514999,212.0,0.000234,2]
[340748394,1729775521409,300.0,0.00019725,2]
[340748396,1729775829278,250.0,0.0001,2]
[340748397,1729775838489,150.0,0.00012,2]
[340748398,1729775838510,150.0,0.00012,2]
[340748399,1729775879576,150.0,0.0001,2]
[340748400,1729775879596,292.64,0.0001,2]
[340748401,1729775879616,150.0,0.0001,2]
[340748402,1729775879636,150.0,0.0001,2]
[340748403,1729775879655,150.0,0.0001,2]
[340748404,1729775879674,150.0,0.0001,2]
[340748405,1729775879694,7.36,0.0001,2]
[340748407,1729776308214,150.0,0.00014,2]
[340748408,1729776308254,150.0,0.00014,2]
[340748409,1729776308283,150.0,0.00014,2]
[340748410,1729776308318,150.0,0.00014,2]
[340748411,1729776308361,150.0,0.00014,2]
[340748412,1729776308386,150.0,0.00014,2]
[340748413,1729776308416,150.0,0.00014,2]
[340748414,1729776308443,1699750.0,0.00014,2]
[340748415,1729776308492,86625.0,0.00014,2]
[340748416,1729776308535,161340.66338552,0.00014,2]
[340748417,1729776308572,712744.7451886,0.00014,2]
[340748418,1729776308605,50000.0,0.00014,2]
[340748419,1729776308633,49650.0,0.00014,2]
[340748420,1729776308686,-150.0,0.00014,2]
[340748421,1729776308721,-150.0,0.00014,2]
[340748422,1729776308753,-150.0,0.00014,2]
[340748423,1729776308788,-150.0,0.00014,2]
[340748424,1729776308824,-150.0,0.00014,2]
[340748425,1729776308907,-150.0,0.00014,2]
[340748426,1729776308969,-150.0,0.00014,2]
[340748427,1729776309062,-150.0,0.00014,2]
[340748428,1729776309150,-150.0,0.00014,2]
[340748429,1729776309249,-150.0,0.00014,2]
[340748430,1729776309324,-150.0,0.00014,2]
[340748431,1729776309401,-150.0,0.00014,2]
[340748432,1729776309480,-150.0,0.00014,2]
[340748433,1729776309568,-150.0,0.00014,2]
[340748434,1729776309650,-150.0,0.00014,2]
[340748435,1729776309721,-150.0,0.00014,2]
[340748436,1729776309806,-150.0,0.00014,2]
[340748437,1729776309933,-150.0,0.00014,2]
[340748438,1729776310008,-150.0,0.00014,2]
[340748439,1729776310126,-150.0,0.00014,2]
[340748440,1729776310208,-150.0,0.00014,2]
[340748441,1729776312086,-166.89937352,0.00014,2]
[340748442,1729776313678,-150.0,0.00014,2]
[340748443,1729776314220,-150.0,0.00014,2]
[340748444,1729776314694,-150.0,0.00014,2]
[340748445,1729776315515,-150.0,0.00014,2]
[340748446,1729776316034,-150.0,0.00014,2]
[340748447,1729776332259,-87525.0,0.00014,2]
[340748448,1729776336659,2250.0,9e-05,2]
[340748449,1729776355718,1200.0,6.94e-05,2]
[340748450,1729776411185,-235.76561185,0.00013999,2]
[340748451,1729776425136,-251.72810547,0.00013999,2]
[340748452,1729776425158,-573.7776222,0.00013999,2]
[340748453,1729776425179,-150.0,0.00013999,2]
[340748454,1729776425203,-6536.58583923,0.00014,2]
[340748455,1729776455108,-180.64071857,0.000139,2]
[340748456,1729776455134,-216.13,0.0001399,3]
[340748457,1729776455159,-648.44,0.0001399,3]
[340748458,1729776455187,-48954.78928143,0.00014,2]
[340748459,1729776456409,-50000.0,0.00014,2]
[340748460,1729776456772,-50000.0,0.00014,2]
[340748461,1729776457266,-50000.0,0.00014,2]
[340748462,1729776457828,-50000.0,0.00014,2]
[340748463,1729776458532,-50000.0,0.00014,2]
[340748464,1729776459205,-50000.0,0.00014,2]
[340748465,1729776459954,-2059.60963669,0.000139,2]
[340748466,1729776459981,-47940.39036331,0.00014,2]
[340748467,1729776460566,-50000.0,0.00014,2]
[340748468,1729776461283,-50000.0,0.00014,2]
[340748469,1729776461994,-50000.0,0.00014,2]
[340748470,1729776462773,-50000.0,0.00014,2]
[340748471,1729776463410,-50000.0,0.00014,2]
[340748472,1729776464373,-50000.0,0.00014,2]
[340748473,1729776465003,-50000.0,0.00014,2]
[340748474,1729776476817,150.0,0.00012579,2]
[340748475,1729776476839,150.0,0.00012579,2]
[340748476,1729776476861,150.0,0.00012579,2]
[340748477,1729776476889,150.0,0.00012579,2]
[340748478,1729776476910,150.0,0.00012579,2]
[340748479,1729776476932,150.0,0.00012579,2]
[340748480,1729776476954,150.0,0.00012579,2]
[340748481,1729776476975,150.0,0.00012579,2]
[340748482,1729776476996,150.0,0.00012579,2]
[340748483,1729776477017,150.0,0.00012579,2]
[340748484,1729776477037,150.0,0.00012579,2]
[340748485,1729776477058,150.0,0.00012579,2]
[340748486,1729776477078,150.0,0.00012579,2]
[340748487,1729776477098,150.0,0.00012579,2]
[340748488,1729776477121,150.0,0.00012579,2]
[340748489,1729776477145,150.0,0.00012579,2]
[340748490,1729776477164,150.0,0.00012579,2]
[340748491,1729776477185,150.0,0.00012579,2]
[340748492,1729776477205,150.0,0.00012579,2]
[340748493,1729776477225,150.0,0.00012579,2]
[340748494,1729776477246,150.0,0.00012579,2]
[340748495,1729776477267,150.0,0.00012579,2]
[340748496,1729776477287,150.0,0.00012579,2]
[340748497,1729776477312,10738.72321111,0.00012579,2]
[340748502,1729776494497,-2500.0,0.000136,4]
[340748503,1729776494518,-5100.0,0.000137,5]
[340748504,1729776494539,-300.0,0.00013799,2]
[340748505,1729776494561,-7600.0,0.000138,5]
[340748506,1729776494584,-10200.0,0.000139,5]
[340748507,1729776494610,-14300.0,0.0001399,2]
[340748508,1729776501125,-50000.0,0.0001399,2]
[340748509,1729776501998,-50000.0,0.0001399,2]
[340748510,1729776502774,-50000.0,0.0001399,2]
[340748511,1729776503750,-50000.0,0.0001399,2]
[340748513,1729776519056,150.0,0.00013503,2]
[340748514,1729776526228,150.0,0.000107,2]
[340748515,1729776526250,104.63867382,0.000107,2]
[340748516,1729776526942,-179.09123942,0.0001399,2]
[340748517,1729776528944,-150.0,0.0001399,2]
[340748518,1729776530441,-150.0,0.0001399,2]
[340748519,1729776531716,-150.0,0.0001399,2]
[340748520,1729776532329,-150.0,0.0001399,2]
[340748521,1729776533054,-150.0,0.0001399,2]
[340748522,1729776533639,-150.0,0.0001399,2]
[340748523,1729776534123,-150.0,0.0001399,2]
[340748524,1729776534722,-150.0,0.0001399,2]
[340748525,1729776535421,-150.0,0.0001399,2]
[340748526,1729776535930,-150.0,0.0001399,2]
[340748527,1729776536634,-227.41470758,0.0001399,2]
[340748528,1729776568095,-150.0,0.00013977,2]
[340748529,1729776568118,-432.26,0.0001398,3]
[340748530,1729776568142,-538.276998,0.0001399,2]
[340748544,1729776631636,-173.87190492,0.000139,2]
[340748546,1729776631647,-229.8955471,0.000139,2]
[340748548,1729776631657,-150.0,0.00013968,2]
[340748550,1729776631668,-300.0,0.00013989,2]
[340748552,1729776631679,-150.0,0.00013989,2]
[340748554,1729776631689,-308.50916133,0.0001399,2]
[340748555,1729776631703,-1100.75449853,0.0001399,2]
[340748556,1729776631891,-8353.12197614,0.0001399,2]
[340748557,1729776631901,-71646.52589889,0.0001399,2]
[340748558,1729776631913,-799.05,0.0001399,2]
[340748559,1729776631924,-17842.07220924,0.0001399,2]
[340748560,1729776631936,-41465.69368089,0.0001399,2]
[340748561,1729776631948,-800.0,0.0001399,2]
[340748562,1729776631959,-2705.49053353,0.0001399,2]
[340748563,1729776631970,-76760.31517245,0.0001399,2]
[340748564,1729776631980,-150.0,0.0001399,2]
[340748565,1729776631990,-150.0,0.0001399,2]
[340748566,1729776632001,-170.71466594,0.0001399,2]
[340748567,1729776632010,-254.40750035,0.0001399,2]
[340748568,1729776632018,-176.20967383,0.00013999,2]
[340748570,1729776632030,-58237.68477672,0.00014,2]
[340748571,1729776632042,-2193.55551448,0.00014,2]
[340748572,1729776632054,-74696.78239705,0.00014,2]
[340748573,1729776632074,-1233.03866818,0.00014,2]
[340748574,1729776632085,-11189.0,0.00014,2]
[340748575,1729776632097,-1353.32,0.00014,2]
[340748576,1729776632108,-1606.96079807,0.00014,2]
[340748577,1729776632119,-546.70831491,0.00014,2]
[340748578,1729776632130,-3897.67600053,0.00014,2]
[340748579,1729776632141,-2802.54775847,0.00014,2]
[340748580,1729776632152,-3381.685964,0.00014,2]
[340748587,1729776638505,-16.86713304,0.00014,2]
[340748588,1729776638519,-2381.46955,0.00014,2]
[340748589,1729776638536,-428.640303,0.00014,2]
[340748590,1729776638548,-69294.93107228,0.00014,2]
[340748591,1729776638563,-2510.72,0.00014,2]
[340748592,1729776638574,-1119840.07144711,0.00014,2]
[340748593,1729776638585,-981.22870002,0.00014,2]
[340748594,1729776638641,-50834.70262688,0.00014,2]
[340748595,1729776638652,-559.12249875,0.00014,2]
[340748596,1729776638663,-68776.09888597,0.00014,2]
[340748597,1729776638676,-3449.06688113,0.00014,2]
[340748598,1729776638690,-8217.7463374,0.00014,2]
[340748599,1729776638702,-1345.23433619,0.00014,2]
[340748600,1729776638715,-5434.35718,0.00014,2]
[340748604,1729776639739,-415.19920755,0.00014,2]
[340748605,1729776639751,-1015.193354,0.00014,2]
[340748606,1729776639762,-762.32500001,0.00014,2]
[340748607,1729776639969,-816.98597974,0.00014,2]
[340748608,1729776639981,-3535.03979346,0.00014,2]
[340748609,1729776639993,-1406.98951982,0.00014,2]
[340748610,1729776640005,-268.14475651,0.00014,2]
[340748611,1729776640036,-222.58529242,0.00014,2]
[340748612,1729776640050,-13046.56033394,0.00014,2]
[340748613,1729776640061,-15862.36906521,0.00014,2]
[340748614,1729776640073,-534.899999,0.00014,2]
[340748615,1729776640084,-8301.148365,0.00014,2]
[340748616,1729776640095,-262.61055778,0.00014,2]
[340748618,1729776640624,-150.0,0.00014,2]
[340748619,1729776641625,-150.0,0.00014,2]
[340748622,1729776642624,-150.0,0.00014,2]
[340748624,1729776642739,-993.0,0.00014,2]
[340748625,1729776642795,-244059.22479008,0.00014,2]
[340748626,1729776642926,-10142.7,0.00014,2]
[340748627,1729776642972,-427.18428536,0.00014,2]
[340748628,1729776642985,-537.88,0.00014,2]
[340748629,1729776642996,-935.05871083,0.00014,2]
[340748636,1729776643704,-378470.42139054,0.00014,2]
[340748637,1729776643791,-150.0,0.00014,2]
[340748638,1729776644305,-150.0,0.00014,2]
[340748639,1729776645000,-150.0,0.00014,2]
[340748640,1729776645445,-150.0,0.00014,2]
[340748641,1729776645666,-28567.43796095,0.00014,2]
[340748642,1729776645681,-676.71,0.00014,2]
[340748643,1729776645727,-67651.6450007,0.00014,2]
[340748650,1729776698457,-19603.23266231,0.0001386,2]
[340748651,1729776698485,-150.0,0.00013894,2]
[340748652,1729776698509,-1000.0,0.00013999,2]
[340748653,1729776698537,-4246.76733769,0.00014,2]
[340748654,1729776699330,-25000.0,0.00014,2]
[340748655,1729776700113,-25000.0,0.00014,2]
[340748656,1729776700848,-25000.0,0.00014,2]
[340748657,1729776701712,-25000.0,0.00014,2]
[340748658,1729776702741,-25000.0,0.00014,2]
[340748659,1729776704275,-25000.0,0.00014,2]
[340748660,1729776705262,-25000.0,0.00014,2]
[340748661,1729776706305,-25000.0,0.00014,2]
[340748662,1729776707427,-25000.0,0.00014,2]
[340748663,1729776708517,-25000.0,0.00014,2]
[340748666,1729777556552,-150.0,0.00013986,2]
[340748667,1729777556575,-150.0,0.00013999,2]
[340748668,1729777556599,-67189.96997505,0.00014,2]